[Event "*** Titled Tuesday 3|2 Blitz"]
[Site "Chess.com"]
[Date "2015.06.02"]
[Round "1"]
[White "patzerplay"]
[Black "AlexanderL"]
[Result "0-1"]
[WhiteElo "2162"]
[BlackElo "2525"]
[TimeControl "180+2"]
[EndTime "11:03:16 PDT"]
[Termination "AlexanderL won by resignation"]

1. e4 {[%clk 0:02:54.9]} 1... d5 {[%clk 0:02:57]} 2. exd5 {[%clk 0:02:54.4]}
2... Qxd5 {[%clk 0:02:58.9]} 3. Nc3 {[%clk 0:02:55.4]} 3... Qd6 {[%clk
0:02:59.4]} 4. Nf3 {[%clk 0:02:23.8]} 4... Nf6 {[%clk 0:03:00.1]} 5. d4 {[%clk
0:02:22.8]} 5... c6 {[%clk 0:03:01]} 6. Bc4 {[%clk 0:02:23.2]} 6... Bg4 {[%clk
0:03:00.9]} 7. Be3 {[%clk 0:02:15.3]} 7... Nbd7 {[%clk 0:03:01.5]} 8. O-O {[%clk
0:02:12.7]} 8... e6 {[%clk 0:03:02.1]} 9. h3 {[%clk 0:02:04.5]} 9... Bh5 {[%clk
0:03:02.7]} 10. Be2 {[%clk 0:02:04.4]} 10... Be7 {[%clk 0:02:53.5]} 11. Ng5
{[%clk 0:02:05.5]} 11... Bg6 {[%clk 0:02:52.4]} 12. Bf3 {[%clk 0:02:05.8]} 12...
O-O {[%clk 0:02:52.4]} 13. Nge4 {[%clk 0:02:05.9]} 13... Qb4 {[%clk 0:02:51.7]}
14. Rb1 {[%clk 0:02:04.5]} 14... Nd5 {[%clk 0:02:49.6]} 15. a3 {[%clk 0:02:04]}
15... Qa5 {[%clk 0:02:50.7]} 16. Bd2 {[%clk 0:01:57]} 16... Qb6 {[%clk
0:02:50.2]} 17. Be3 {[%clk 0:01:44.6]} 17... Rfd8 {[%clk 0:02:48.3]} 18. Na4
{[%clk 0:01:43.7]} 18... Qc7 {[%clk 0:02:48.6]} 19. Nac5 {[%clk 0:01:44]} 19...
Nxc5 {[%clk 0:02:48.6]} 20. Nxc5 {[%clk 0:01:44]} 20... Nxe3 {[%clk 0:02:48.4]}
21. fxe3 {[%clk 0:01:44.8]} 21... Bxc5 {[%clk 0:02:49.5]} 0-1

[Event "*** Titled Tuesday 3|2 Blitz"]
[Site "Chess.com"]
[Date "2015.06.02"]
[Round "1"]
[White "VSERGUEI"]
[Black "geeeeri"]
[Result "1-0"]
[WhiteElo "2462"]
[BlackElo "2141"]
[TimeControl "180+2"]
[EndTime "11:04:38 PDT"]
[Termination "VSERGUEI won by resignation"]

1. d4 {[%clk 0:02:56.8]} 1... e6 {[%clk 0:03:00.9]} 2. c4 {[%clk 0:02:55.3]}
2... Nf6 {[%clk 0:03:01.1]} 3. Nc3 {[%clk 0:02:55.8]} 3... d5 {[%clk 0:03:01.6]}
4. cxd5 {[%clk 0:02:56.2]} 4... exd5 {[%clk 0:03:01.3]} 5. Bg5 {[%clk
0:02:57.7]} 5... c6 {[%clk 0:03:02.6]} 6. e3 {[%clk 0:02:59.1]} 6... Be7 {[%clk
0:03:04.2]} 7. Qc2 {[%clk 0:02:59.7]} 7... O-O {[%clk 0:03:05.7]} 8. Bd3 {[%clk
0:03:00.1]} 8... Nbd7 {[%clk 0:03:07.1]} 9. Nf3 {[%clk 0:03:01.4]} 9... h6
{[%clk 0:03:08.3]} 10. Bf4 {[%clk 0:03:02]} 10... Re8 {[%clk 0:03:09.7]} 11. O-O
{[%clk 0:03:02.2]} 11... Nf8 {[%clk 0:03:10.9]} 12. h3 {[%clk 0:03:03.1]} 12...
Ne6 {[%clk 0:03:11.7]} 13. Bh2 {[%clk 0:03:03.7]} 13... Ng5 {[%clk 0:03:12.7]}
14. Ne5 {[%clk 0:03:04.1]} 14... Bd6 {[%clk 0:03:09.8]} 15. Rae1 {[%clk
0:03:03.4]} 15... Bxe5 {[%clk 0:02:53.2]} 16. dxe5 {[%clk 0:03:02.4]} 16... Nfe4
{[%clk 0:01:50.3]} 17. f4 {[%clk 0:02:56.8]} 17... Nxc3 {[%clk 0:01:36.1]} 18.
fxg5 {[%clk 0:02:57.4]} 18... Ne4 {[%clk 0:01:28.3]} 19. gxh6 {[%clk 0:02:56.6]}
19... Qg5 {[%clk 0:01:22.4]} 20. Bf4 {[%clk 0:02:48.8]} 20... Qg6 {[%clk
0:01:21.3]} 21. hxg7 {[%clk 0:02:48]} 21... Bxh3 {[%clk 0:01:19.4]} 22. Rf3
{[%clk 0:02:48.1]} 22... Bg4 {[%clk 0:01:18.3]} 23. Rg3 {[%clk 0:02:48.7]} 23...
Qf5 {[%clk 0:01:01.2]} 24. Bxe4 {[%clk 0:02:47.5]} 24... dxe4 {[%clk 0:01:00.5]}
25. Qb3 {[%clk 0:02:44.6]} 25... Re6 {[%clk 0:01:00.4]} 26. Qxb7 {[%clk
0:02:44.3]} 26... Rae8 {[%clk 0:01:00.7]} 27. Qxa7 {[%clk 0:02:42.2]} 27... Rh6
{[%clk 0:01:01]} 28. Bxh6 {[%clk 0:02:40.7]} 1-0

[Event "*** Titled Tuesday 3|2 Blitz"]
[Site "Chess.com"]
[Date "2015.06.02"]
[Round "1"]
[White "Recombinant"]
[Black "9ShMat2"]
[Result "0-1"]
[WhiteElo "2105"]
[BlackElo "2473"]
[TimeControl "180+2"]
[EndTime "11:05:42 PDT"]
[Termination "9ShMat2 won by resignation"]

1. d4 {[%clk 0:03:01.9]} 1... Nf6 {[%clk 0:02:58.1]} 2. c4 {[%clk 0:03:01.3]}
2... g6 {[%clk 0:02:59.3]} 3. Nc3 {[%clk 0:03:01.9]} 3... d5 {[%clk 0:03:00.5]}
4. Bg5 {[%clk 0:02:55]} 4... Ne4 {[%clk 0:02:57.9]} 5. Nxe4 {[%clk 0:02:49]}
5... dxe4 {[%clk 0:02:59.8]} 6. Qd2 {[%clk 0:02:49.7]} 6... Bg7 {[%clk
0:03:00.8]} 7. e3 {[%clk 0:02:50.5]} 7... c5 {[%clk 0:02:57.2]} 8. d5 {[%clk
0:02:51.5]} 8... h6 {[%clk 0:02:52.3]} 9. Bh4 {[%clk 0:02:52.1]} 9... Bf5 {[%clk
0:02:48.4]} 10. Ne2 {[%clk 0:02:50.6]} 10... Qb6 {[%clk 0:02:49.5]} 11. Nc3
{[%clk 0:02:42.6]} 11... Nd7 {[%clk 0:02:45.5]} 12. Be2 {[%clk 0:02:39.3]} 12...
Ne5 {[%clk 0:02:46.4]} 13. f3 {[%clk 0:02:01.9]} 13... exf3 {[%clk 0:02:29.7]}
14. gxf3 {[%clk 0:02:02.5]} 14... g5 {[%clk 0:02:31.1]} 15. Bg3 {[%clk
0:02:02.5]} 15... O-O-O {[%clk 0:02:32.1]} 16. e4 {[%clk 0:01:50.4]} 16... Bg6
{[%clk 0:02:33]} 17. O-O-O {[%clk 0:01:44.6]} 17... f5 {[%clk 0:02:17.2]} 18.
Kb1 {[%clk 0:01:40.8]} 18... Rhf8 {[%clk 0:02:11.8]} 19. Rhf1 {[%clk 0:01:40]}
19... Kb8 {[%clk 0:02:06.8]} 20. exf5 {[%clk 0:00:52.1]} 20... Bxf5+ {[%clk
0:02:08.7]} 21. Bd3 {[%clk 0:00:42]} 21... Ka8 {[%clk 0:02:02.9]} 22. Bxf5
{[%clk 0:00:42.5]} 22... Rxf5 {[%clk 0:02:03.4]} 23. Bxe5 {[%clk 0:00:37.9]}
23... Bxe5 {[%clk 0:02:01.2]} 24. Qd3 {[%clk 0:00:38.2]} 24... Rdf8 {[%clk
0:01:58.9]} 25. Rde1 {[%clk 0:00:33.6]} 25... a6 {[%clk 0:01:54.7]} 26. Ne4
{[%clk 0:00:33.9]} 0-1

[Event "*** Titled Tuesday 3|2 Blitz"]
[Site "Chess.com"]
[Date "2015.06.02"]
[Round "1"]
[White "vovkcoach"]
[Black "Viaje"]
[Result "0-1"]
[WhiteElo "2461"]
[BlackElo "2158"]
[TimeControl "180+2"]
[EndTime "11:07:24 PDT"]
[Termination "Viaje won by resignation"]

1. d4 {[%clk 0:02:52.8]} 1... Nf6 {[%clk 0:03:00]} 2. c4 {[%clk 0:02:54.4]} 2...
c5 {[%clk 0:03:00.2]} 3. d5 {[%clk 0:02:53.4]} 3... b5 {[%clk 0:03:01.1]} 4.
cxb5 {[%clk 0:02:53.9]} 4... a6 {[%clk 0:03:02.2]} 5. bxa6 {[%clk 0:02:55.8]}
5... g6 {[%clk 0:03:02.9]} 6. Nc3 {[%clk 0:02:56.6]} 6... Bg7 {[%clk 0:03:04.3]}
7. Nf3 {[%clk 0:02:53.9]} 7... O-O {[%clk 0:03:05.6]} 8. e4 {[%clk 0:02:54.1]}
8... Qa5 {[%clk 0:03:06.3]} 9. a7 {[%clk 0:02:54.2]} 9... Rxa7 {[%clk 0:03:06]}
10. Bd2 {[%clk 0:02:52.2]} 10... Qb6 {[%clk 0:03:01.2]} 11. Bc4 {[%clk
0:02:32.9]} 11... d6 {[%clk 0:03:01.1]} 12. O-O {[%clk 0:02:30.3]} 12... Nbd7
{[%clk 0:03:02.1]} 13. h3 {[%clk 0:02:28.6]} 13... Qb8 {[%clk 0:03:01]} 14. b3
{[%clk 0:02:27.3]} 14... Ba6 {[%clk 0:03:00.8]} 15. Rb1 {[%clk 0:02:25.3]} 15...
Nb6 {[%clk 0:02:53.7]} 16. Bxa6 {[%clk 0:02:25.5]} 16... Rxa6 {[%clk 0:02:54.3]}
17. a4 {[%clk 0:02:27.2]} 17... Rc8 {[%clk 0:02:43.1]} 18. Re1 {[%clk
0:02:26.7]} 18... Nfd7 {[%clk 0:02:41.5]} 19. Nb5 {[%clk 0:02:19.8]} 19... c4
{[%clk 0:02:41.3]} 20. a5 {[%clk 0:02:05.4]} 20... c3 {[%clk 0:02:37.1]} 21.
Nxc3 {[%clk 0:01:58.7]} 21... Bxc3 {[%clk 0:02:27.7]} 22. axb6 {[%clk
0:01:59.3]} 22... Rxb6 {[%clk 0:02:26.6]} 23. Bxc3 {[%clk 0:01:57.6]} 23... Rxc3
{[%clk 0:02:28.5]} 24. Nd4 {[%clk 0:01:58.9]} 24... Ne5 {[%clk 0:02:24.4]} 25.
Qe2 {[%clk 0:01:54.8]} 25... Rb4 {[%clk 0:02:19.1]} 26. Red1 {[%clk 0:01:52.7]}
26... Qb6 {[%clk 0:02:16.1]} 27. Qe1 {[%clk 0:01:42.5]} 27... Qc5 {[%clk
0:01:45.8]} 28. Ne2 {[%clk 0:01:27.2]} 28... Rxh3 {[%clk 0:01:42.8]} 29. Rbc1
{[%clk 0:01:03.7]} 29... Qb6 {[%clk 0:01:43.2]} 30. Rc8+ {[%clk 0:00:46.6]}
30... Kg7 {[%clk 0:01:43.6]} 31. Nf4 {[%clk 0:00:43.3]} 31... Rhxb3 {[%clk
0:01:38.9]} 32. Qd2 {[%clk 0:00:44.3]} 32... Rxe4 {[%clk 0:01:27.6]} 33. Re8
{[%clk 0:00:17.5]} 33... Rb2 {[%clk 0:01:23]} 0-1

[Event "*** Titled Tuesday 3|2 Blitz"]
[Site "Chess.com"]
[Date "2015.06.02"]
[Round "1"]
[White "wonderfultime"]
[Black "facu57"]
[Result "0-1"]
[WhiteElo "2515"]
[BlackElo "2184"]
[TimeControl "180+2"]
[EndTime "11:07:31 PDT"]
[Termination "facu57 won by resignation"]

1. d4 {[%clk 0:03:01.8]} 1... c6 {[%clk 0:03:01]} 2. c4 {[%clk 0:03:01.4]} 2...
d5 {[%clk 0:03:02.4]} 3. Nc3 {[%clk 0:03:02.2]} 3... Nf6 {[%clk 0:03:02.7]} 4.
e3 {[%clk 0:03:02.6]} 4... Bf5 {[%clk 0:02:59.7]} 5. cxd5 {[%clk 0:03:02.8]}
5... cxd5 {[%clk 0:03:00.6]} 6. Qb3 {[%clk 0:03:04]} 6... Qc7 {[%clk 0:02:54.6]}
7. Nxd5 {[%clk 0:02:59.6]} 7... Nxd5 {[%clk 0:02:47.9]} 8. Qxd5 {[%clk
0:03:01.5]} 8... e6 {[%clk 0:02:49]} 9. Bb5+ {[%clk 0:02:59.3]} 9... Nc6 {[%clk
0:02:42.3]} 10. Qb3 {[%clk 0:03:00.2]} 10... a6 {[%clk 0:02:40.1]} 11. Bxc6+
{[%clk 0:02:39.4]} 11... Qxc6 {[%clk 0:02:40.1]} 12. Nf3 {[%clk 0:02:41.3]}
12... Bc2 {[%clk 0:02:33.7]} 13. Qc3 {[%clk 0:02:40.3]} 13... Qxc3+ {[%clk
0:02:32.4]} 14. bxc3 {[%clk 0:02:42.2]} 14... Be4 {[%clk 0:02:27.7]} 15. O-O
{[%clk 0:02:33.2]} 15... Rc8 {[%clk 0:02:24.2]} 16. Bb2 {[%clk 0:02:33.7]} 16...
Bxf3 {[%clk 0:02:20.8]} 17. gxf3 {[%clk 0:02:34.4]} 17... Bd6 {[%clk 0:02:22.4]}
18. f4 {[%clk 0:02:28.2]} 18... h6 {[%clk 0:02:19.2]} 19. Kg2 {[%clk 0:02:22.7]}
19... g5 {[%clk 0:02:17]} 20. fxg5 {[%clk 0:02:24.6]} 20... hxg5 {[%clk
0:02:16.6]} 21. h3 {[%clk 0:02:26.5]} 21... f5 {[%clk 0:02:11.6]} 22. Rad1
{[%clk 0:02:18.8]} 22... Ke7 {[%clk 0:02:07.3]} 23. Rh1 {[%clk 0:02:15.2]} 23...
b5 {[%clk 0:02:07.5]} 24. Ba1 {[%clk 0:02:01.6]} 24... Rh4 {[%clk 0:02:07.6]}
25. Rb1 {[%clk 0:01:50.6]} 25... Rc4 {[%clk 0:01:59.8]} 26. Kf3 {[%clk
0:01:46.8]} 26... Ra4 {[%clk 0:01:56.9]} 27. Rb2 {[%clk 0:01:48.1]} 27... e5
{[%clk 0:01:53.6]} 28. Rc2 {[%clk 0:01:23.2]} 28... e4+ {[%clk 0:01:54.5]} 29.
Kg2 {[%clk 0:01:22.6]} 29... Ke6 {[%clk 0:01:54.4]} 30. Rf1 {[%clk 0:01:01.9]}
30... Kd5 {[%clk 0:01:50.7]} 31. f3 {[%clk 0:01:03]} 31... exf3+ {[%clk
0:01:44.8]} 32. Rxf3 {[%clk 0:01:04.9]} 32... Ke4 {[%clk 0:01:44.1]} 33. Rcf2
{[%clk 0:00:57.9]} 33... g4 {[%clk 0:01:36.5]} 34. hxg4 {[%clk 0:00:57.8]} 34...
Rh2+ {[%clk 0:01:33.2]} 35. Kg1 {[%clk 0:00:55.5]} 35... Rxa2 {[%clk 0:01:33.9]}
36. Rxa2 {[%clk 0:00:27.2]} 36... Rxa2 {[%clk 0:01:33.8]} 37. Rf1 {[%clk
0:00:29.1]} 37... fxg4 {[%clk 0:01:34.8]} 38. Rc1 {[%clk 0:00:24.4]} 38... g3
{[%clk 0:01:33.9]} 39. Rb1 {[%clk 0:00:25.5]} 39... Kxe3 {[%clk 0:01:32.5]} 40.
Bb2 {[%clk 0:00:25.2]} 40... Kd3 {[%clk 0:01:33.6]} 0-1

[Event "*** Titled Tuesday 3|2 Blitz"]
[Site "Chess.com"]
[Date "2015.06.02"]
[Round "1"]
[White "FearNoEvil12"]
[Black "E-Shaposhnikov"]
[Result "0-1"]
[WhiteElo "1936"]
[BlackElo "2386"]
[TimeControl "180+2"]
[EndTime "11:07:35 PDT"]
[Termination "E-Shaposhnikov won by resignation"]

1. Nf3 {[%clk 0:02:39.9]} 1... c5 {[%clk 0:02:59.3]} 2. c4 {[%clk 0:02:41]} 2...
Nc6 {[%clk 0:03:00.1]} 3. e3 {[%clk 0:02:41.9]} 3... e5 {[%clk 0:02:59.8]} 4.
Nc3 {[%clk 0:02:42.8]} 4... f5 {[%clk 0:02:59.8]} 5. d4 {[%clk 0:02:37.7]} 5...
e4 {[%clk 0:03:00]} 6. Ng1 {[%clk 0:02:35.8]} 6... Nf6 {[%clk 0:02:56.4]} 7.
Nge2 {[%clk 0:02:32.7]} 7... cxd4 {[%clk 0:02:39.2]} 8. exd4 {[%clk 0:02:31.4]}
8... d5 {[%clk 0:02:40.1]} 9. cxd5 {[%clk 0:02:30.1]} 9... Nxd5 {[%clk
0:02:37.2]} 10. Qb3 {[%clk 0:02:28.8]} 10... Be6 {[%clk 0:02:27.6]} 11. Qxb7
{[%clk 0:02:22.9]} 11... Ndb4 {[%clk 0:02:20.2]} 12. Bg5 {[%clk 0:02:05.5]}
12... Nd3+ {[%clk 0:02:08.2]} 13. Kd1 {[%clk 0:02:04.6]} 13... Nxf2+ {[%clk
0:02:05]} 14. Ke1 {[%clk 0:02:03.2]} 14... Nd3+ {[%clk 0:02:05.1]} 15. Kd1
{[%clk 0:02:03.5]} 15... Qc8 {[%clk 0:01:51.4]} 16. Qxc8+ {[%clk 0:01:56.6]}
16... Rxc8 {[%clk 0:01:53.3]} 17. d5 {[%clk 0:01:56.9]} 17... Ncb4 {[%clk
0:01:32.2]} 18. dxe6 {[%clk 0:01:49.6]} 18... Nf2+ {[%clk 0:01:33.2]} 19. Kd2
{[%clk 0:01:48.7]} 19... Nxh1 {[%clk 0:01:34.1]} 20. Nf4 {[%clk 0:01:39.9]}
20... Be7 {[%clk 0:01:28]} 21. Bb5+ {[%clk 0:01:37.2]} 21... Kf8 {[%clk
0:01:28.3]} 22. Bxe7+ {[%clk 0:01:32.9]} 22... Kxe7 {[%clk 0:01:30.2]} 23. Rxh1
{[%clk 0:01:32.8]} 23... g5 {[%clk 0:01:25.8]} 24. Nfe2 {[%clk 0:01:17.5]} 24...
Kxe6 {[%clk 0:01:27]} 25. a3 {[%clk 0:01:14]} 25... Rhd8+ {[%clk 0:01:27.4]} 26.
Ke3 {[%clk 0:01:11.8]} 26... Nc2+ {[%clk 0:01:23.2]} 27. Kf2 {[%clk 0:01:10.6]}
27... Rd2 {[%clk 0:01:22.4]} 28. Rc1 {[%clk 0:01:02.8]} 28... Nd4 {[%clk
0:01:12.9]} 29. Rb1 {[%clk 0:00:44.7]} 29... Nxb5 {[%clk 0:01:00.5]} 30. Nxb5
{[%clk 0:00:42.9]} 30... Rcc2 {[%clk 0:01:01.3]} 31. Nc3 {[%clk 0:00:41.8]}
31... Rxb2 {[%clk 0:00:56.8]} 32. Rxb2 {[%clk 0:00:41.5]} 32... Rxb2 {[%clk
0:00:58.7]} 33. g4 {[%clk 0:00:42.1]} 33... fxg4 {[%clk 0:00:52.6]} 34. Nxe4
{[%clk 0:00:41.4]} 34... Kf5 {[%clk 0:00:54.2]} 35. Ke3 {[%clk 0:00:37.5]} 35...
Rxe2+ {[%clk 0:00:54.5]} 36. Kxe2 {[%clk 0:00:37.3]} 36... Kxe4 {[%clk
0:00:56.4]} 0-1

[Event "*** Titled Tuesday 3|2 Blitz"]
[Site "Chess.com"]
[Date "2015.06.02"]
[Round "1"]
[White "Tilicheev_Viacheslav"]
[Black "ruifeng"]
[Result "1-0"]
[WhiteElo "2413"]
[BlackElo "2053"]
[TimeControl "180+2"]
[EndTime "11:07:51 PDT"]
[Termination "Tilicheev_Viacheslav won by checkmate"]

1. b3 {[%clk 0:02:49]} 1... e5 {[%clk 0:03:00.4]} 2. Bb2 {[%clk 0:02:48.8]} 2...
Nc6 {[%clk 0:03:01.6]} 3. e3 {[%clk 0:02:50.4]} 3... Nf6 {[%clk 0:03:01.6]} 4.
Bb5 {[%clk 0:02:47.6]} 4... Bd6 {[%clk 0:03:02.5]} 5. Na3 {[%clk 0:02:44.9]}
5... Be7 {[%clk 0:03:03.5]} 6. Nc4 {[%clk 0:02:33.4]} 6... d6 {[%clk 0:03:03.6]}
7. Bxc6+ {[%clk 0:02:30]} 7... bxc6 {[%clk 0:03:04.6]} 8. Ne2 {[%clk 0:02:31.9]}
8... O-O {[%clk 0:03:05.2]} 9. d4 {[%clk 0:02:30.9]} 9... exd4 {[%clk
0:03:02.4]} 10. Nxd4 {[%clk 0:02:24.6]} 10... c5 {[%clk 0:03:03.1]} 11. Nc6
{[%clk 0:02:20.9]} 11... Qd7 {[%clk 0:03:04.3]} 12. Qf3 {[%clk 0:02:17.2]} 12...
Ba6 {[%clk 0:02:55.3]} 13. Nxe7+ {[%clk 0:02:13.9]} 13... Qxe7 {[%clk
0:02:56.1]} 14. Bxf6 {[%clk 0:02:15.8]} 14... Qxf6 {[%clk 0:02:54.1]} 15. Qxf6
{[%clk 0:02:17.1]} 15... gxf6 {[%clk 0:02:55.1]} 16. Na5 {[%clk 0:02:14]} 16...
Rfe8 {[%clk 0:02:53]} 17. c4 {[%clk 0:02:10.3]} 17... Rab8 {[%clk 0:02:44.5]}
18. Kd2 {[%clk 0:02:11.3]} 18... Bb7 {[%clk 0:02:44.6]} 19. f3 {[%clk
0:02:03.8]} 19... Ba8 {[%clk 0:02:45.4]} 20. e4 {[%clk 0:02:02.6]} 20... Rb6
{[%clk 0:02:46]} 21. a3 {[%clk 0:01:54.6]} 21... Reb8 {[%clk 0:02:44]} 22. Kc3
{[%clk 0:01:51.5]} 22... Re8 {[%clk 0:02:41]} 23. g4 {[%clk 0:01:49.1]} 23...
Kg7 {[%clk 0:02:39.9]} 24. h4 {[%clk 0:01:49.3]} 24... Re5 {[%clk 0:02:35.2]}
25. h5 {[%clk 0:01:46.1]} 25... h6 {[%clk 0:02:35.6]} 26. Rhd1 {[%clk
0:01:41.1]} 26... Rb8 {[%clk 0:02:35.6]} 27. b4 {[%clk 0:01:37.2]} 27... cxb4+
{[%clk 0:02:33.9]} 28. axb4 {[%clk 0:01:39.1]} 28... a6 {[%clk 0:02:25.9]} 29.
Nb3 {[%clk 0:01:36.2]} 29... Bb7 {[%clk 0:02:26.9]} 30. Nd4 {[%clk 0:01:37.8]}
30... Kh7 {[%clk 0:02:23.4]} 31. Nf5 {[%clk 0:01:38.3]} 31... Rbe8 {[%clk
0:02:22]} 32. c5 {[%clk 0:01:28.1]} 32... dxc5 {[%clk 0:02:17]} 33. Rd7 {[%clk
0:01:30]} 33... cxb4+ {[%clk 0:02:17.5]} 34. Kxb4 {[%clk 0:01:25]} 34... Rb8
{[%clk 0:01:58.8]} 35. Rxf7+ {[%clk 0:01:21.1]} 35... Kh8 {[%clk 0:01:57.8]} 36.
Kc4 {[%clk 0:01:12.8]} 36... Bc8 {[%clk 0:01:55.4]} 37. Rxf6 {[%clk 0:01:10.6]}
37... Bxf5 {[%clk 0:01:51.5]} 38. gxf5 {[%clk 0:01:07.7]} 38... a5 {[%clk
0:01:48.7]} 39. Rg1 {[%clk 0:01:01.3]} 39... Kh7 {[%clk 0:01:46]} 40. Rf7+
{[%clk 0:00:57.8]} 40... Kh8 {[%clk 0:01:44.3]} 41. Rg6 {[%clk 0:00:59.7]} 41...
Rb6 {[%clk 0:01:44]} 42. Rxc7 {[%clk 0:00:51.5]} 42... Rb4+ {[%clk 0:01:32.4]}
43. Kd3 {[%clk 0:00:52.5]} 43... Reb5 {[%clk 0:01:32.8]} 44. Rxh6+ {[%clk
0:00:40.5]} 44... Kg8 {[%clk 0:01:33.5]} 45. Rd6 {[%clk 0:00:41.2]} 45... Rb3+
{[%clk 0:01:32.5]} 46. Kd4 {[%clk 0:00:41.4]} 46... R3b4+ {[%clk 0:01:33.1]} 47.
Ke3 {[%clk 0:00:42.5]} 47... Rb8 {[%clk 0:01:33.4]} 48. Rg6+ {[%clk 0:00:37.8]}
48... Kh8 {[%clk 0:01:33]} 49. Rh6+ {[%clk 0:00:37.8]} 49... Kg8 {[%clk
0:01:33.9]} 50. f6 {[%clk 0:00:37.8]} 50... Rf8 {[%clk 0:01:32.7]} 51. Rg7#
{[%clk 0:00:38.1]} 1-0

[Event "*** Titled Tuesday 3|2 Blitz"]
[Site "Chess.com"]
[Date "2015.06.02"]
[Round "1"]
[White "WGMCarlaHeredia"]
[Black "gmsakk"]
[Result "0-1"]
[WhiteElo "2066"]
[BlackElo "2439"]
[TimeControl "180+2"]
[EndTime "11:08:10 PDT"]
[Termination "gmsakk won on time"]

1. e4 {[%clk 0:02:59.8]} 1... c5 {[%clk 0:02:02.1]} 2. Nf3 {[%clk 0:03:00.1]}
2... d6 {[%clk 0:02:03.5]} 3. d4 {[%clk 0:02:58.4]} 3... cxd4 {[%clk 0:02:04.8]}
4. Nxd4 {[%clk 0:02:59.3]} 4... Nf6 {[%clk 0:02:06.5]} 5. Nc3 {[%clk 0:02:59.7]}
5... a6 {[%clk 0:02:08.1]} 6. Qe2 {[%clk 0:02:58.8]} 6... e6 {[%clk 0:02:08.2]}
7. g4 {[%clk 0:02:58.8]} 7... Qc7 {[%clk 0:02:09.1]} 8. g5 {[%clk 0:02:58.2]}
8... Nfd7 {[%clk 0:02:10.3]} 9. Be3 {[%clk 0:02:57.2]} 9... b5 {[%clk
0:02:11.3]} 10. Bg2 {[%clk 0:02:52.1]} 10... Bb7 {[%clk 0:02:12.4]} 11. O-O-O
{[%clk 0:02:52.1]} 11... Nc6 {[%clk 0:02:12.7]} 12. f4 {[%clk 0:02:43.7]} 12...
b4 {[%clk 0:02:07.5]} 13. Na4 {[%clk 0:02:32.4]} 13... Be7 {[%clk 0:01:59.5]}
14. f5 {[%clk 0:02:19.6]} 14... Nxd4 {[%clk 0:01:56.4]} 15. Rxd4 {[%clk
0:02:21.5]} 15... a5 {[%clk 0:01:46.9]} 16. fxe6 {[%clk 0:02:14.8]} 16... fxe6
{[%clk 0:01:47.5]} 17. Qh5+ {[%clk 0:02:08.4]} 17... g6 {[%clk 0:01:44.8]} 18.
Qg4 {[%clk 0:02:07.3]} 18... Nf8 {[%clk 0:01:41.7]} 19. Rd2 {[%clk 0:01:58.8]}
19... Ra6 {[%clk 0:01:22.6]} 20. Rf1 {[%clk 0:01:24]} 20... Bc6 {[%clk
0:01:11.9]} 21. Nb6 {[%clk 0:01:19.4]} 21... Rxb6 {[%clk 0:01:09.6]} 22. Bxb6
{[%clk 0:01:21.3]} 22... Qxb6 {[%clk 0:01:10.7]} 23. Qf4 {[%clk 0:01:11.5]}
23... Qc5 {[%clk 0:00:54.9]} 24. e5 {[%clk 0:00:31.5]} 24... Bxg2 {[%clk
0:00:47.7]} 25. Qf7+ {[%clk 0:00:31.8]} 25... Kd8 {[%clk 0:00:48.5]} 26. exd6
{[%clk 0:00:23.4]} 26... Bxg5 {[%clk 0:00:49.4]} 27. Rf4 {[%clk 0:00:07.3]}
27... Bxf4 {[%clk 0:00:42.4]} 28. Qxf4 {[%clk 0:00:08]} 28... Nd7 {[%clk
0:00:37.7]} 29. Rxg2 {[%clk 0:00:07.8]} 29... Rf8 {[%clk 0:00:38.3]} 30. Qh4+
{[%clk 0:00:08]} 30... Kc8 {[%clk 0:00:38.2]} 31. Qe1 {[%clk 0:00:05.8]} 31...
e5 {[%clk 0:00:33.1]} 32. Rd2 {[%clk 0:00:06]} 32... Rf6 {[%clk 0:00:29.2]} 33.
Qh4 {[%clk 0:00:02.8]} 33... Rf1+ {[%clk 0:00:27.9]} 0-1

[Event "*** Titled Tuesday 3|2 Blitz"]
[Site "Chess.com"]
[Date "2015.06.02"]
[Round "1"]
[White "Schemato"]
[Black "Keaton87"]
[Result "0-1"]
[WhiteElo "2054"]
[BlackElo "2408"]
[TimeControl "180+2"]
[EndTime "11:08:15 PDT"]
[Termination "Keaton87 won by resignation"]

1. c4 {[%clk 0:02:59.5]} 1... Nf6 {[%clk 0:02:59.1]} 2. Nc3 {[%clk 0:02:56.7]}
2... g6 {[%clk 0:03:00.3]} 3. g3 {[%clk 0:02:57.2]} 3... d5 {[%clk 0:03:00.6]}
4. cxd5 {[%clk 0:02:57.2]} 4... Nxd5 {[%clk 0:03:01.9]} 5. Bg2 {[%clk
0:02:58.4]} 5... Nb6 {[%clk 0:03:03.2]} 6. Nf3 {[%clk 0:02:58.4]} 6... Bg7
{[%clk 0:03:04.5]} 7. d3 {[%clk 0:02:59.7]} 7... Nc6 {[%clk 0:03:04.7]} 8. Be3
{[%clk 0:03:00.6]} 8... O-O {[%clk 0:03:04.5]} 9. Qc1 {[%clk 0:03:01.6]} 9...
Re8 {[%clk 0:03:03.6]} 10. Bh6 {[%clk 0:03:00.8]} 10... Bh8 {[%clk 0:03:04.4]}
11. h4 {[%clk 0:03:01.4]} 11... Nd4 {[%clk 0:02:31.6]} 12. h5 {[%clk 0:02:56.9]}
12... Nf5 {[%clk 0:02:32.2]} 13. Bd2 {[%clk 0:02:53.6]} 13... Bg7 {[%clk
0:02:26.6]} 14. Ne4 {[%clk 0:02:48]} 14... c6 {[%clk 0:02:23.5]} 15. Bc3 {[%clk
0:02:48.5]} 15... Bxc3+ {[%clk 0:02:11.7]} 16. bxc3 {[%clk 0:02:45.1]} 16... e5
{[%clk 0:00:50.1]} 17. hxg6 {[%clk 0:02:37]} 17... fxg6 {[%clk 0:00:49.7]} 18.
g4 {[%clk 0:02:12.8]} 18... Nd6 {[%clk 0:00:40.4]} 19. Qh6 {[%clk 0:02:05.2]}
19... Nf7 {[%clk 0:00:28.3]} 20. Qxh7+ {[%clk 0:02:04.8]} 20... Kf8 {[%clk
0:00:29.8]} 21. Qxg6 {[%clk 0:01:52.8]} 21... Re6 {[%clk 0:00:30.5]} 22. Qf5
{[%clk 0:01:41.7]} 22... Rh6 {[%clk 0:00:24.9]} 23. Qxf7+ {[%clk 0:00:56.8]}
23... Kxf7 {[%clk 0:00:26.8]} 24. Rxh6 {[%clk 0:00:58]} 24... Kg7 {[%clk
0:00:28.6]} 25. g5 {[%clk 0:00:58.1]} 25... Bf5 {[%clk 0:00:29.4]} 26. Nxe5
{[%clk 0:00:53.3]} 26... Nd5 {[%clk 0:00:27.9]} 27. c4 {[%clk 0:00:47.4]} 27...
Qa5+ {[%clk 0:00:28.7]} 28. Kf1 {[%clk 0:00:41.3]} 28... Nf4 {[%clk 0:00:30.6]}
29. Nf3 {[%clk 0:00:20.3]} 29... Bxe4 {[%clk 0:00:27.1]} 30. dxe4 {[%clk
0:00:20]} 30... Qc3 {[%clk 0:00:28.7]} 31. Rd1 {[%clk 0:00:17.9]} 31... Qc2
{[%clk 0:00:20.4]} 32. Rd7+ {[%clk 0:00:11.3]} 32... Kg8 {[%clk 0:00:21.9]} 33.
Ne1 {[%clk 0:00:09.2]} 33... Qxe2+ {[%clk 0:00:22.7]} 34. Kg1 {[%clk 0:00:09]}
34... Qxe1+ {[%clk 0:00:23.9]} 35. Kh2 {[%clk 0:00:10.3]} 35... Qxf2 {[%clk
0:00:24.2]} 0-1